Cogmind - Beta 13 @@@ ROGUE MODE // 2024.06.30 @ 13:11:04 Player: RAT Result: Destroyed by G-47 Trooper with Particle Gun Performance ------------- Evolutions (1) 500 Regions Visited (3) 600 Robots Destroyed (19) 95 Value Destroyed (325) 325 Prototype IDs (0) 0 Alien Tech Used (0) 0 Bonus (0) 0 TOTAL SCORE: 1520 Bonus ------- None Cogmind --------- Core Integrity 0/400 Matter 231/300 Energy 65/100 System Corruption 0% Temperature Cool (15) Movement Core (50) Location -9/Storage Parts ------- > --- POWER (1) -------- (None) > --- PROPULSION (3) --- (None) > --- UTILITY (3) ------ (None) > --- WEAPON (2) ------- EM Shotgun > --- INVENTORY (5) ---- (None) Peak State ------------ > --- POWER ------------ Light Ion Engine > --- PROPULSION ------- Airjet Airjet Airjet > --- UTILITY ---------- Terrain Scanner Seismic Detector Tractor Beam > --- WEAPON ----------- Mini Grenade Launcher Datajack > --- INVENTORY -------- Medium Laser Flak Cannon [Rating: 16] Favorites ----------- Power Light Ion Engine Engine Light Ion Engine Propulsion Wheel Leg Aluminum Leg Wheel Wheel Hover Unit Airjet Flight Unit Flight Unit Utility Tractor Beam Device Tractor Beam Storage Small Storage Unit Weapon Light Assault Rifle Energy Gun Small Laser Ballistic Gun Light Assault Rifle Ballistic Cannon Flak Cannon Launcher Mini Grenade Launcher Special Melee Weapon Datajack Build | -11 -10 -9 -9 ------- Run | Yrd Mat Mat Sto Slots Evolved 2 | . . 2 . Power . | . . . . Propulsion 1 | . . 1 . Utility 1 | . . 1 . Weapon . | . . . . Parts Attached 29 | 6 10 6 7 Power 3 | 1 1 . 1 Engine 3 | 1 1 . 1 Core . | . . . . Reactor . | . . . . Propulsion 10 | 2 4 3 1 Treads . | . . . . Leg 2 | . 2 . . Wheel 2 | 2 . . . Hover 4 | . . 3 1 Flight 2 | . 2 . . Utility 5 | 1 1 1 2 Device 4 | . 1 1 2 Storage 1 | 1 . . . Processor . | . . . . Hackware . | . . . . Protection . | . . . . Artifact . | . . . . Weapon 11 | 2 4 2 3 Energy Gun 5 | 2 1 . 2 Energy Cannon . | . . . . Ballistic Gun 3 | . 2 1 . Ballistic Cannon 1 | . . . 1 Launcher 1 | . . 1 . Special Weapon . | . . . . Impact Weapon . | . . . . Slashing Weapon . | . . . . Piercing Weapon . | . . . . Special Melee Weapon 1 | . 1 . . Unidentified Prototypes . | . . . . Parts Lost 17 | . 4 2 11 Power 3 | . 1 1 1 Propulsion 6 | . 2 1 3 Utility 3 | . . . 3 Weapon 5 | . 1 . 4 Highest Loss Streak 8 | . 4 2 8 To Critical Strikes . | . . . . Average Slot Usage (%) 78 | . 89 69 51 Engine 11 | . 13 10 3 Leg 2 | . 4 . . Wheel 9 | . 15 . . Hover 5 | . . 25 8 Flight 4 | . 6 4 . Device 12 | . 10 11 21 Storage 9 | . 14 . . Energy Gun 7 | . 10 . . Ballistic Gun 6 | . 10 1 . Launcher 3 | . . 7 10 Special Melee Weapon 4 | . 3 11 2 Naked Turns 2 | . . . 2 Heaviest Build 13 | 11 13 10 9 Greatest Support 24 | 20 20 24 24 Greatest Overweight (x) 3 | 2 3 1 2 Average Overweight (x) . | . . . . Largest Inventory Capacity 8 | 8 8 8 5 Average Capacity 6 | 7 8 5 5 Most Carried 8 | 8 6 6 3 Average Carried 3 | 5 3 4 1 Final Capacity 8 | 8 8 5 5 Final Carried 5 | 5 5 4 . Class Distribution -------------------- 100% | Mutant Dominant Class ---------------- Mutant | -10/Materials Mutant | -9/Materials Mutant | -9/Storage Resources | -11 -10 -9 -9 ----------- Run | Yrd Mat Mat Sto Matter Collected 526 | 204 138 6 178 Remotely 252 | . 138 6 108 Salvage Created 434 | . 138 74 222 Parts 29 | . 10 13 6 Haulers Intercepted 1 | . . . 1 Recyclers Shooed . | . . . . Parts Field Recycled . | . . . . Retrieved Matter . | . . . . Parts Self-Destructed . | . . . . Prevented . | . . . . Kills | -11 -10 -9 -9 ------- Run | Yrd Mat Mat Sto Combat Hostiles Destroyed 13 | . 5 5 3 Guns 6 | . 5 . 1 AOE 7 | . . 5 2 Classes Destroyed 6 | . 2 2 2 Worker 1 | . . 1 . Builder 2 | . . 2 . Hauler 1 | . . . 1 Recycler 2 | . . . 2 Swarmer 7 | . 3 4 . Grunt 6 | . 2 1 3 Best Kill Streak 4 | . 4 4 4 Combat Bots Only 4 | . 4 4 3 Max Kills in Single Turn 3 | . 1 3 2 Gunslinging . | . . . . Exploded 2 | . . 2 1 Melee . | . . . . Uniques/NPCs Destroyed . | . . . . Combat | -11 -10 -9 -9 -------- Run | Yrd Mat Mat Sto Hostile Shots Fired 181 | . 72 27 82 Missed 56 | . 15 13 28 Damage Taken 1625 | . 558 174 893 Core 537 | . 128 34 375 Absorbed by Shields . | . . . . Core Remaining (%) 74 | 100 48 . . Volleys Fired 49 | . 27 6 16 Largest 2 | . 2 1 2 Hottest 80 | . 60 30 80 Shots Fired 78 | . 53 6 19 Gun 58 | . 53 . 5 Cannon 8 | . . . 8 Launcher 12 | . . 6 6 Special . | . . . . Kinetic 35 | . 27 . 8 Thermal 17 | . 14 . 3 Explosive 12 | . . 6 6 Electromagnetic 14 | . 12 . 2 Robot Hit Streak 11 | . 7 5 11 Robot Miss Streak 6 | . 6 . 4 Penetration Max . | . . . . Secondary Targets 2 | . 2 . . Max Gunslinging Chain 1 | . 1 . . Shots Hit Robots 54 | . 30 7 17 Core Hits 39 | . 11 10 18 Critical Kills . | . . . . Critical Parts Destroyed . | . . . . Critical Strikes 2 | . 1 . 1 Burn 1 | . . . 1 Corrupt 1 | . 1 . . Melee Attacks 4 | . . 4 . Impact . | . . . . Slashing . | . . . . Piercing . | . . . . Sneak Attacks 4 | . . 4 . Combat Hostiles . | . . . . Follow-up Attacks . | . . . . Damage Inflicted 1343 | . 291 463 589 Guns 350 | . 291 . 59 Cannons 152 | . . . 152 Explosions 840 | . . 463 377 Melee . | . . . . Ramming 1 | . . . 1 Kinetic 266 | . 114 . 152 Thermal 126 | . 89 . 37 Explosive 840 | . . 463 377 Electromagnetic 110 | . 88 . 22 Impact . | . . . . Slashing . | . . . . Piercing . | . . . . Highest Corruption . | . . . . Average Corruption . | . . . . Corruption Purged . | . . . . Corruption Blocked . | . . . . Overload Shots . | . . . . Overflow Damage 34 | . . 28 6 Projectiles . | . . . . Explosions 34 | . . 28 6 Melee . | . . . . Knockbacks 4 | . . . 4 Impact . | . . . . Kinetic 4 | . . . 4 Secondary . | . . . . Self-Inflicted Damage 97 | . . . 97 Shots 4 | . . . 4 Rammed 1 | . . . 1 Targets Rammed 1 | . . . 1 Kicked . | . . . . Crushed . | . . . . Highest Temperature 141 | . 141 4 55 Average Temperature 46 | . 55 2 25 Received Heat Transfer 579 | . 141 75 363 Siege Activations . | . . . . Robots Corrupted . | . . . . Combat Hostiles . | . . . . Parts Fried . | . . . . Impact Corruptions . | . . . . Robots Melted . | . . . . Combat Hostiles . | . . . . Parts Melted . | . . . . Heat Transferred 385 | . 200 . 185 Parts Sabotaged . | . . . . Parts Stolen . | . . . . Parts Stripped . | . . . . Power Chain Reactions . | . . . . Alert | -11 -10 -9 -9 ------- Run | Yrd Mat Mat Sto Peak Influence 299 | . 200 219 299 Initial 85 | . . . 85 Average 77 | . 71 57 146 Maximum Alert Level 1 | . 1 1 1 Low Security (%) 88 | 100 89 90 79 Level 1 11 | . 10 9 20 Level 2 . | . . . . Level 3 . | . . . . Level 4 . | . . . . Level 5 . | . . . . High Security . | . . . . Max Security . | . . . . Squads Dispatched 2 | . . 1 1 Investigation 1 | . . . 1 Extermination . | . . . . Reinforcement 1 | . . 1 . Assault . | . . . . Garrison . | . . . . Intercept . | . . . . Searches Triggered . | . . . . Construction Impeded . | . . . . Haulers Reinforced . | . . . . Active Scanning Responses . | . . . . Cargo Convoy Interrupts . | . . . . Stealth | -11 -10 -9 -9 --------- Run | Yrd Mat Mat Sto Distress Signals 3 | . 2 1 . Communications Jammed . | . . . . Distress Signals . | . . . . Times Spotted 44 | . 13 13 18 Peak Tracking Total 10 | . 5 7 10 Tactical Retreats 5 | . 3 . 2 Traps | -11 -10 -9 -9 ------- Run | Yrd Mat Mat Sto Traps Triggered 1 | . . . 1 Indirectly . | . . . . Trap Hack Attempts . | . . . . Triggered . | . . . . Disarmed . | . . . . Reprogrammed . | . . . . Reused . | . . . . Traps Extracted . | . . . . Installed . | . . . . Triggered . | . . . . Machines | -11 -10 -9 -9 ---------- Run | Yrd Mat Mat Sto Machines Disabled . | . . . . Max in Single Turn . | . . . . Machines Repaired . | . . . . Machines Dismantled . | . . . . Machines Sabotaged . | . . . . Overloaded Fab Kills . | . . . . Hacking | -11 -10 -9 -9 --------- Run | Yrd Mat Mat Sto Machines Accessed 1 | . . . 1 Terminals 1 | . . . 1 Fabricators . | . . . . Repair Stations . | . . . . Recycling Units . | . . . . Scanalyzers . | . . . . Garrison Access . | . . . . Total Hacks 4 | . . . 4 Successful 1 | . . . 1 Failed 3 | . . . 3 Catastrophic . | . . . . Database Lockouts . | . . . . Manual . | . . . . Terminals 4 | . . . 4 Fabricators . | . . . . Repair Stations . | . . . . Recycling Units . | . . . . Scanalyzers . | . . . . Garrison Access . | . . . . Terminal Hacks 1 | . . . 1 Open Door 1 | . . . 1 Fabricator Hacks . | . . . . Repair Station Hacks . | . . . . Recycling Unit Hacks . | . . . . Scanalyzer . | . . . . Garrison Access Hacks . | . . . . Unauthorized Hacks . | . . . . Terminals . | . . . . Fabricators . | . . . . Repair Stations . | . . . . Recycling Units . | . . . . Scanalyzers . | . . . . Garrison Access . | . . . . Data Cores Recovered . | . . . . Used . | . . . . Hacking Detections 1 | . . . 1 Full Trace Events . | . . . . Feedback Events . | . . . . Feedback Blocked . | . . . . Robot Schematics Acquired . | . . . . Robots Built . | . . . . Authchips . | . . . . Time . | . . . . Total Robot Build Rating . | . . . . Part Schematics Acquired . | . . . . Parts Built . | . . . . Authchips . | . . . . Time . | . . . . Total Part Build Rating . | . . . . Parts Repaired . | . . . . Time . | . . . . Parts Recycled . | . . . . Recycled Matter . | . . . . Retrieved Matter . | . . . . Retrieved Components . | . . . . Parts Scanalyzed . | . . . . Part Schematics Acquired . | . . . . Parts Damaged . | . . . . Bothacking | -11 -10 -9 -9 ------------ Run | Yrd Mat Mat Sto Used RIF Installer . | . . . . Robots Hacked 1 | . . 1 . Non-combat 1 | . . 1 . Combat . | . . . . Robot Hacks Applied 2 | . . 2 . parse_system 1 | . . 1 . no_distress 1 | . . 1 . Relay Couplers Released . | . . . . Fabnet Peak Effective % . | . . . . Robots Rewired . | . . . . Allies Hacked . | . . . . Hacks Repelled . | . . . . Allies | -11 -10 -9 -9 -------- Run | Yrd Mat Mat Sto Total Allies . | . . . . Largest Group . | . . . . Highest-Rated Group . | . . . . Highest-Rated Ally . | . . . . Total Orders . | . . . . Ally Attacks . | . . . . Total Damage . | . . . . Kills . | . . . . Allies Corrupted . | . . . . Allies Melted . | . . . . Intel | -11 -10 -9 -9 ------- Run | Yrd Mat Mat Sto Robot Analysis Total . | . . . . Derelict Logs Recovered . | . . . . Drone Launches . | . . . . Drone Recoveries . | . . . . Exploration | -11 -10 -9 -9 ------------- Run | Yrd Mat Mat Sto Turns Passed 695 | 48 411 111 125 Spaces Moved 569 | 39 273 150 107 Core 56 | 23 3 . 30 Treads . | . . . . Legs 39 | . 39 . . Wheels 180 | 16 164 . . Hover 188 | . . 111 77 Flight 106 | . 67 39 . Fastest Speed 37 | 50 80 37 50 Average Speed 79 | 84 96 51 73 Slowest Speed 200 | 150 200 117 150 Overloaded Moves . | . . . . Propulsion Burnouts . | . . . . Robots Hopped . | . . . . Cave-ins Triggered . | . . . . Exploration Rate (%) 25 | 3 40 24 33 Regions Visited 3 Branch Regions 1 Pre-discovered Areas . | . . . . Known Exits Taken . | . . . . Unknown Exits Taken 3 | 1 1 1 . Scrap Searched . | . . . . Spaces Dug . | . . . . Terrain Destroyed 84 | . . 42 42 Melee . | . . . . Projectile . | . . . . AOE 84 | . . 42 42 Terrain Rammed . | . . . . Walls Destroyed . | . . . . Machines Disabled . | . . . . Actions | -11 -10 -9 -9 --------- Run | Yrd Mat Mat Sto Total 739 | 53 373 179 134 Wait 58 | . 57 1 . Move 566 | 38 272 149 107 Hop . | . . . . Pick Up 20 | 8 6 3 3 Fast Attach 5 | 2 . 3 . Attach 21 | 4 7 3 7 Detach 5 | 1 1 3 . Swap 3 | . 3 . . Drop 7 | . . 7 . Fire 49 | . 27 6 16 Melee 4 | . . 4 . Ram 1 | . . . 1 Kick . | . . . . Crush . | . . . . Escape Stasis . | . . . . Rewire . | . . . . Trap . | . . . . Miscellaneous . | . . . . Route ------- -11/Scrapyard -10/Materials -9/Materials -9/Storage History --------- Turn | Location | Event 6 | -11/Scrapyard | Discovered new exit (range 15) 49 | -11/Scrapyard | Entered Materials 295 | -10/Materials | Core integrity fell below 50% 319 | -10/Materials | Lost 4 parts (1p2n1w) 321 | -10/Materials | Build established: Mutant 412 | -10/Materials | Discovered new exit (range 16) 460 | -10/Materials | Entered another Materials area 460 | -9/Materials | Evolved 2 slots: Propulsion x1, Utility x1 559 | -9/Materials | Discovered new exit (range 15) 571 | -9/Materials | Entered Storage 654 | -9/Storage | Lost 8 parts (2p4n1u1w) 681 | -9/Storage | Core integrity fell below 50% 687 | -9/Storage | Core integrity fell below 20% 696 | -9/Storage | Destroyed by G-47 Trooper with Particle Gun Last Messages --------------- 00651_ Acquired 36 matter. 00654_ K-01 Serf collects debris. 00667_ Critical hit (Burn: +37). 00667_ G-47 Trooper knocked back. 00675_ Flak Cannon destroyed. 00675_ Broken Tractor Beam destroyed. 00676_ Y-45 Defender destroyed. 00676_ G-34 Mercenary destroyed. 00682_ Y-45 Defender suffers critical hit (Burn). 00683_ Med. Laser destroyed. 00685_ The unstable cave ceiling collapses. 00685_ R-06 Scavenger destroyed. 00685_ G-47 Trooper destroyed. 00687_ Seismic Detector destroyed. 00687_ Destroyed Seismic Detector. 00689_ Mni. Grenade Launcher destroyed. 00690_ Acquired EM Shotgun. 00692_ The unstable cave ceiling collapses. 00695_ K-01 Serf collects debris. Map ----- +----------------------------------------------------+ | | | | | | | | | | | | | | | | | | | | | | | | | | | | | | | | | | | | | | | | | | | ??????????????####???????????????????????????????? | | ?????????????# """#??????########????????????????? | | ?????????????#""R"#?????# !! #????????????????? | | ???????????###"" "####### #????????????????? | | ???????? % @ #????????????????? | | ?????????????# # ! #????????????????? | | ##???????????# # # #????????????????? | | # ########???# ## Y #######????????????????? | | # #???# # [ #????????????????????? | | # "T" ##### =! %=[ #????????????????????? | | # / %%[ = #????????????????????? | | #!! ##### * #????????????????????? | | #! #???# # k #????????????????????? | | # """"" #???# #### g #????????????????????? | | # """"" #???# #??#####/##????????????????????? | | # """"" #???# #???????g#?????????????????????? | | # #???# ???????Y/?????????????????????? | | #####+####???#### ##?????? #?????????????????????? | | ### #????????#+#??????? ??????????????????????? | | ! #?????????? ??????? ??????????????????????? | | [ #?????????? ??????????????????????????????? | | /## #??????????? ?????????????????????????????? | | ??## ##??????????? ?????????????????????????????? | | ???# #????????????? ????????????????????????????? | | ???# ###########????????????????????????????????? | | ???# ## #????????????????????????????????? | | ??## ## #????????????????????????????????? | | ??# # #????????????????????????????????? | | ??# # #????????????????????????????????? | +----------------------------------------------------+ Best States ------------- Heat Dissipation 28 Energy Generation 10 Energy Capacity 250 Matter Stores 300 Matter Capacity 300 Sight Range 16 Terrain Scan Range 14 Terrain Scan Density 10 Evasion (%) 62 Item Schematics ----------------- None Robot Schematics ------------------ None Fabricated ------------ Nothing Alien Tech Used ----------------- None Achievements -------------- None Challenges ------------ None Game ------ Seed RegenerativeCompositePit Manual? 0 Play Time 00:15:00 Cumulative 14.2 hours Start 2024.06.30 @ 12:58:06 End 2024.06.30 @ 13:11:04 Sessions 1 Manual Loads 0 Difficulty Rogue Special Mode None Game No. 65 Rogue 65 Adventurer 0 Explorer 0 Win Type - Total 0 Types 0/0/0/0/0/0/0/0/0 Lore% 5 Gallery% 18 Achievement% 13 Wizard Run 0 Options --------- Layout 1 ASCII 0 Keyboard 0 Movement Mouse Keybinds 0 Fullscreen 1 Font 24/Smallcaps Map View 50x35 Zoom Use 0% Tactical HUD 1 Map Filters NONE Filters NONE Steam 1 RUN: 70588767-409f-4416-98fb-533f7dbfb343